bitfinex/quotes_ETHUSD_20240925
["timestamp","ask_amount","ask_price","bid_price","bid_amount"]
[1727264110368,1.59679045,2624.0,2623.7,0.8152]
[1727264110688,1.64798027,2624.2,2623.7,0.8152]
[1727264111615,1.59679045,2624.3,2623.7,0.8152]
[1727264111805,1.59679045,2624.4,2623.7,0.8152]
[1727264112371,1.99600965,2624.5,2623.7,0.8152]
[1727264112372,1.59679045,2624.5,2623.7,0.8152]
[1727264113211,4.59679045,2624.6,2623.7,0.8152]
[1727264113578,4.64798027,2624.6,2623.7,0.8152]
[1727264113782,1.64798027,2624.6,2623.7,0.8152]
[1727264113992,2.82859629,2624.3,2623.7,0.8152]
[1727264114221,2.82859629,2624.1,2623.7,0.8152]
[1727264114515,0.05118982,2624.0,2623.7,0.8152]
[1727264115297,0.05118982,2624.1,2623.7,0.8152]
[1727264116984,2.87978611,2624.1,2623.7,0.8152]
[1727264117187,2.82859629,2623.9,2623.7,0.8152]
[1727264117386,0.05118982,2623.8,2623.7,0.8152]
[1727264123415,0.05118982,2624.0,2623.7,0.8152]
[1727264124722,0.60118982,2624.2,2623.7,0.8152]
[1727264125018,0.05118982,2624.2,2623.7,0.8152]
[1727264125243,4.64798027,2624.4,2623.7,0.8152]
[1727264125452,11.88538674,2624.5,2623.7,0.8152]
[1727264125774,7.46,2624.5,2623.7,0.8152]
[1727264128150,2.82859629,2624.7,2623.9,0.7737]
[1727264128440,0.05118982,2624.6,2623.9,0.7737]
[1727264128823,2.82859629,2624.7,2623.9,0.7737]
[1727264130149,2.87978611,2624.7,2623.9,0.7737]
[1727264130930,2.82859629,2624.5,2623.9,0.7737]
[1727264131964,0.09781704,2624.4,2623.9,0.7737]
[1727264136641,2.82859629,2624.7,2623.9,0.7737]
[1727264136964,0.09711037,2624.6,2623.9,0.7737]
[1727264137326,0.14830019,2624.6,2623.9,0.7737]
[1727264137873,2.82859629,2624.5,2623.9,0.7737]
[1727264138176,2.92579294,2624.5,2623.9,0.7737]
[1727264139537,0.05118982,2624.4,2623.9,0.7737]
[1727264139875,3.22349122,2624.5,2623.9,0.7737]
[1727264139876,0.09718235,2624.3,2623.9,0.7737]
[1727264140361,3.12629457,2624.5,2623.9,0.7737]
[1727264140539,0.09712855,2624.2,2623.9,0.7737]
[1727264140741,2.82859629,2624.5,2623.9,0.7737]
[1727264140993,0.09707475,2624.1,2623.9,0.7737]
[1727264141153,2.82859629,2624.7,2623.9,0.7737]
[1727264141773,0.09401048,2624.6,2623.9,0.7737]
[1727264142349,0.1452003,2624.6,2623.9,0.7737]
[1727264142943,0.09401048,2624.6,2623.9,0.7737]
[1727264147571,7.42538674,2624.8,2623.9,0.7737]
[1727264147744,0.09372116,2624.5,2623.9,0.7737]
[1727264147950,1.59679045,2624.8,2623.9,0.7737]
[1727264148150,0.09366737,2624.4,2624.0,0.07621492]
[1727264148460,0.0936527,2624.3,2624.1,0.826]
[1727264148785,1.63479045,2625.0,2624.1,0.826]
[1727264148786,0.038,2625.0,2624.1,0.826]
[1727264149175,0.09397897,2624.9,2624.2,0.07620616]
[1727264149359,0.09397897,2624.9,2624.3,0.7572]
[1727264150381,0.09397897,2624.9,2624.4,0.88480112]
[1727264150757,0.09397897,2624.9,2624.4,0.8086]
[1727264151283,2.82859629,2624.8,2624.4,0.8086]
[1727264151587,0.05118982,2624.7,2624.4,0.8086]
[1727264152186,0.09415565,2624.6,2624.4,0.8086]
[1727264154350,0.05118982,2624.9,2624.4,0.8086]
[1727264154549,1.63479045,2625.0,2624.4,0.8086]
[1727264154550,0.09393121,2624.5,2624.4,0.8086]
[1727264154781,1.63479045,2625.0,2624.4,0.8086]
[1727264154782,0.038,2625.0,2624.5,0.7765]
[1727264154949,0.038,2625.0,2624.8,0.8081]
[1727264155147,0.038,2625.0,2624.9,0.88428083]
[1727264155686,0.038,2625.0,2624.9,0.8081]
[1727264158500,0.13216289,2625.0,2624.9,0.8081]
[1727264172397,0.13216289,2625.0,2624.1,0.7734]
[1727264172597,0.13216289,2625.0,2624.3,0.7734]
[1727264182359,0.13216289,2625.0,2624.6,0.7879]
[1727264182583,0.13216289,2625.0,2624.7,0.07618859]
[1727264182797,0.13216289,2625.0,2624.7,0.44545708]
[1727264183789,0.13216289,2625.0,2624.8,0.7569]
[1727264183986,0.038,2625.0,2624.8,0.7569]
[1727264184355,0.038,2625.0,2624.5,0.7898]
[1727264184600,0.038,2625.0,2624.6,0.37898]
[1727264184601,0.09415736,2624.9,2624.6,0.37898]
[1727264184802,0.09415736,2624.9,2624.5,0.7898]
[1727264186604,0.8112,2624.8,2624.2,0.7895]
[1727264186764,3.78519251,2624.8,2624.2,0.7895]
[1727264187200,0.95659622,2624.8,2624.2,0.7895]
[1727264190311,0.9054064,2624.8,2624.2,0.7895]
[1727264198004,0.0942064,2624.8,2624.2,0.7895]
[1727264198229,0.0942064,2624.8,2624.6,2.82859629]
[1727264198407,0.0942064,2624.8,2624.7,4.23454706]
[1727264198595,0.038,2625.0,2624.8,0.7581]
[1727264198794,0.038,2625.0,2624.9,5.09354489]
[1727264199038,0.038,2625.0,2624.9,5.89291839]
[1727264199204,0.038,2625.0,2624.9,6.20679749]
[1727264199393,0.038,2625.0,2624.9,7.00617099]
[1727264200296,0.038,2625.0,2624.9,4.89352861]
[1727264202166,0.038,2625.0,2624.9,2.06493232]
[1727264202363,0.038,2625.0,2624.9,1.98875789]
[1727264202563,0.038,2625.0,2624.9,2.06493385]
[1727264205867,0.038,2625.0,2624.9,1.18942856]
[1727264206068,0.038,2625.0,2624.9,2.06390836]
[1727264207132,0.038,2625.0,2624.9,1.18942856]
[1727264208260,0.038,2625.0,2624.9,2.06361159]
[1727264208566,0.038,2625.0,2624.9,2.06361713]
[1727264208777,0.038,2625.0,2624.9,2.06360726]
[1727264209277,0.038,2625.0,2624.9,1.18942856]
[1727264210034,0.038,2625.0,2624.9,1.1132526]
[1727264210229,0.038,2625.0,2624.8,0.83428091]
[1727264210970,0.038,2625.0,2624.8,3.83428091]
[1727264212078,0.038,2625.0,2624.9,7.52031131]
[1727264212376,0.819,2625.8,2625.1,0.8178]
[1727264212558,0.819,2625.8,2625.2,2.90476311]
[1727264215269,0.08490898,2625.7,2625.2,2.90476311]
[1727264215435,0.08490898,2625.7,2625.3,0.37225631]
[1727264215643,0.08490898,2625.7,2625.4,0.0761668]
[1727264216172,0.819,2625.8,2625.4,0.0761668]
[1727264216954,0.08490898,2625.7,2625.4,0.0761668]
[1727264217138,0.819,2625.8,2625.4,0.0761668]
[1727264217475,0.08490898,2625.7,2625.4,0.40386874]
[1727264217838,0.819,2625.8,2625.2,0.07616691]
[1727264219672,0.08492377,2625.7,2625.2,0.07616691]
[1727264220053,0.819,2625.8,2625.2,0.07616691]
[1727264220253,0.08487002,2625.6,2625.2,2.9047632]
[1727264220452,0.8417,2626.0,2625.4,0.7952]
[1727264220752,0.8417,2626.0,2625.5,0.07616651]
[1727264221774,0.8417,2626.0,2625.4,0.87136607]
[1727264222764,0.8417,2626.0,2625.5,0.07616599]
[1727264224863,0.8417,2626.0,2625.5,0.44616222]
[1727264225060,0.038,2626.0,2625.5,0.44616222]
[1727264227189,0.08529929,2625.9,2625.4,0.7952]
[1727264228205,0.038,2626.0,2625.4,0.7952]
[1727264228369,0.08524555,2625.8,2625.4,0.7952]
[1727264228733,0.038,2626.0,2625.4,0.7952]
[1727264228869,0.038,2626.0,2625.5,0.37952]
[1727264229205,0.08529929,2625.9,2625.5,0.37952]
[1727264229407,0.08529929,2625.9,2625.5,0.45567884]
[1727264229611,0.038,2626.0,2625.5,0.37952]
[1727264229977,0.08524555,2625.8,2625.5,0.37952]
[1727264230180,0.038,2626.0,2625.5,0.37952]
[1727264230904,0.08529929,2625.9,2625.5,0.37952]
[1727264231110,0.08529929,2625.9,2625.6,0.07615867]
[1727264231294,0.038,2626.0,2625.7,0.7634]
[1727264231672,0.08529929,2625.9,2625.7,0.7634]
[1727264231983,0.038,2626.0,2625.7,0.7634]
[1727264232369,0.08524555,2625.8,2625.7,0.7634]
[1727264232571,0.038,2626.0,2625.7,0.7634]
[1727264232977,0.08529929,2625.9,2625.7,0.7634]
[1727264233403,0.038,2626.0,2625.7,0.7634]
[1727264234345,0.0852269,2625.9,2625.7,0.7634]
[1727264234813,0.038,2626.0,2625.7,0.7634]
[1727264235111,0.04727048,2625.8,2625.7,0.7634]
[1727264235317,0.038,2626.0,2625.7,0.7634]
[1727264235719,0.08405756,2625.9,2625.7,0.7634]
[1727264236210,0.038,2626.0,2625.7,0.7634]
[1727264236374,0.08400381,2625.8,2625.7,0.7634]
[1727264236803,0.038,2626.0,2625.7,0.7634]
[1727264239907,0.08405756,2625.9,2625.7,0.7634]
[1727264240309,0.038,2626.0,2625.7,0.7634]
[1727264240632,0.08405756,2625.9,2625.7,0.7634]
[1727264240835,0.038,2626.0,2625.7,0.7634]
[1727264241143,0.08400381,2625.8,2625.7,0.7634]
[1727264241338,0.038,2626.0,2625.7,0.7634]
[1727264241861,0.08394687,2625.9,2625.7,0.7634]
[1727264242043,0.038,2626.0,2625.7,0.7634]
[1727264242225,0.08389312,2625.8,2625.7,0.7634]
[1727264242534,0.038,2626.0,2625.7,0.7634]
[1727264244224,0.038,2626.0,2625.4,1.6136735]
[1727264244416,0.08416647,2625.9,2625.5,0.87439991]
[1727264245544,0.7837,2625.8,2625.1,5.8982706]
[1727264245747,0.7837,2625.8,2625.2,5.48370452]
[1727264245949,0.7837,2625.8,2625.2,4.60882078]
[1727264246154,0.7837,2625.8,2625.1,4.5892735]
[1727264246307,0.7837,2625.8,2625.2,0.87494376]
[1727264246508,0.038,2626.0,2625.4,1.30547408]
[1727264246855,0.038,2626.0,2625.6,1.30547408]
[1727264246856,0.08411598,2625.9,2625.6,1.30547408]
[1727264247145,0.08411598,2625.9,2625.7,0.07615529]
[1727264248741,0.038,2626.0,2625.7,0.07615529]
[1727264249115,0.08413094,2625.9,2625.7,0.07615529]
[1727264249461,0.038,2626.0,2625.7,0.07615529]
[1727264249615,0.08401079,2625.8,2625.7,0.07615529]
[1727264249817,0.038,2626.0,2625.7,0.07615529]
[1727264250153,0.08401079,2625.8,2625.7,0.07615529]
[1727264250453,0.038,2626.0,2625.7,0.07615529]
[1727264250659,0.08401079,2625.8,2625.7,0.07615529]
[1727264250824,0.038,2626.0,2625.7,0.07615529]
[1727264251264,0.08410881,2625.9,2625.7,0.07615529]
[1727264251438,0.038,2626.0,2625.7,0.07615529]
[1727264251769,0.08400505,2625.8,2625.7,0.07615529]
[1727264251931,0.038,2626.0,2625.7,0.07615529]
[1727264252271,0.0840588,2625.9,2625.7,0.07615529]
[1727264252560,0.038,2626.0,2625.7,0.07615529]
[1727264252946,0.08413094,2625.9,2625.7,0.07615529]
[1727264253359,0.038,2626.0,2625.7,0.07615529]
[1727264253743,0.08413094,2625.9,2625.7,0.07615529]
[1727264254136,0.038,2626.0,2625.7,0.07615529]
[1727264254376,0.038,2626.0,2625.5,2.13002877]
[1727264254566,0.08413094,2625.9,2625.6,1.46824704]
[1727264254798,0.08413094,2625.9,2625.6,0.59294023]
[1727264255065,0.038,2626.0,2625.6,0.59294023]
[1727264255284,0.038,2626.0,2625.7,0.95151767]
[1727264255441,0.038,2626.0,2625.8,0.28568867]
[1727264255627,0.08406457,2625.9,2625.8,0.28568867]
[1727264257471,0.08406457,2625.9,2625.3,1.70532145]
[1727264257472,0.7814,2625.8,2625.3,1.70532145]
[1727264257763,0.7814,2625.8,2625.4,2.1899263]
[1727264257968,0.7814,2625.8,2625.5,0.87596958]
[1727264258181,0.084184,2625.7,2625.4,1.60439492]
[1727264258464,0.7814,2625.8,2625.5,0.87610135]
[1727264258671,0.08411599,2625.6,2625.5,0.28718198]
[1727264258835,0.7814,2625.8,2625.5,1.16323246]
[1727264259037,0.08411599,2625.6,2625.4,0.29039695]
[1727264259394,0.08411599,2625.6,2625.5,0.87605579]
[1727264259582,0.7814,2625.8,2625.5,0.87605579]
[1727264259732,0.7814,2625.8,2625.5,1.60880363]
[1727264259932,0.08359147,2625.7,2625.5,0.29479386]
[1727264260343,0.7814,2625.8,2625.5,0.29479386]
[1727264260845,0.08359147,2625.7,2625.5,0.29479386]
[1727264261048,0.7814,2625.8,2625.5,0.29479386]
[1727264261374,0.08353772,2625.6,2625.3,1.70532145]
[1727264261569,0.8306,2625.7,2625.2,3.0]
[1727264261774,0.8306,2625.7,2625.3,0.87615824]
[1727264261931,0.8306,2625.7,2625.3,1.31421969]
[1727264262132,0.08354485,2625.6,2625.3,1.31421969]
[1727264262435,0.08354485,2625.6,2625.3,1.25897654]
[1727264262635,0.8306,2625.7,2625.3,1.25897654]
[1727264262873,0.0834911,2625.5,2625.3,1.25897654]
[1727264263075,0.8306,2625.7,2625.3,2.57304726]
[1727264263280,0.8306,2625.7,2625.4,0.6448593]
[1727264263438,0.8306,2625.7,2625.4,0.72103078]
[1727264264582,0.8306,2625.7,2625.4,0.6448593]
[1727264264869,0.08349142,2625.6,2625.3,0.07616857]
[1727264265099,0.8306,2625.7,2625.3,0.07616857]
[1727264267268,0.8306,2625.7,2625.3,2.16286783]
[1727264267477,0.8306,2625.7,2625.4,0.29622413]
[1727264267632,0.8306,2625.7,2625.5,0.07616642]
[1727264270076,0.08342017,2625.6,2625.5,0.07616642]
[1727264270973,0.08342017,2625.6,2625.3,0.84916652]
[1727264271275,0.8306,2625.7,2625.3,0.84916652]
[1727264271463,0.8306,2625.7,2625.4,0.21623358]
[1727264271686,0.08340948,2625.6,2625.5,0.07616645]
[1727264272277,0.793,2625.5,2625.1,1.31316926]
[1727264272471,0.793,2625.5,2625.0,0.038]
[1727264272637,0.08340552,2625.4,2625.0,0.038]
[1727264277091,0.7861,2625.3,2625.0,0.038]
[1727264277258,0.86929928,2625.3,2625.0,0.038]
[1727264293020,2.39327191,2625.3,2625.0,0.038]
[1727264293216,0.7815,2625.2,2625.0,0.038]
[1727264293418,0.08256242,2625.1,2625.0,0.038]
[1727264294243,0.83386242,2625.1,2625.0,0.038]
[1727264299091,0.7513,2625.1,2625.0,0.038]
[1727264299862,0.8337305,2625.1,2625.0,0.038]
[1727264305388,0.0824305,2625.1,2625.0,0.038]
[1727264305720,0.8152,2625.3,2625.0,0.038]
[1727264305870,0.08128197,2625.1,2625.0,0.038]
[1727264306072,2.12160246,2625.3,2625.0,0.038]
[1727264306260,0.08128197,2625.1,2625.0,0.038]
[1727264306464,2.12160246,2625.3,2625.0,0.038]
[1727264306693,0.08128197,2625.1,2625.0,0.038]
[1727264306873,2.12160246,2625.3,2625.0,0.038]
[1727264307082,0.08128197,2625.1,2625.0,0.038]
[1727264307258,2.12160246,2625.3,2625.0,0.038]
[1727264307459,0.08128197,2625.1,2625.0,0.038]
[1727264307695,2.12160246,2625.3,2625.0,0.038]
[1727264307897,0.08127128,2625.1,2625.0,0.038]
[1727264308101,2.12160246,2625.3,2625.0,0.038]
[1727264308306,0.08127128,2625.1,2625.0,0.038]
[1727264308607,2.12160246,2625.3,2625.0,0.038]
[1727264308816,0.08127128,2625.1,2625.0,0.038]
[1727264309103,0.08124914,2625.1,2625.0,0.038]
[1727264309278,0.8152,2625.3,2625.0,0.038]
[1727264309471,0.08127128,2625.1,2625.0,0.038]
[1727264309675,0.8152,2625.3,2625.0,0.038]
[1727264309865,0.08127128,2625.1,2625.0,0.038]
[1727264310195,0.8152,2625.3,2625.0,0.038]
[1727264310396,0.08127128,2625.1,2625.0,0.038]
[1727264310566,0.8152,2625.3,2625.0,0.038]
[1727264310765,0.08127128,2625.1,2625.0,0.038]
[1727264311007,0.8152,2625.3,2625.0,0.038]
[1727264311180,0.08127128,2625.1,2625.0,0.038]
[1727264311359,0.8152,2625.3,2625.0,0.038]
[1727264311560,0.08127128,2625.1,2625.0,0.038]
[1727264311815,0.8152,2625.3,2625.0,0.038]
[1727264311975,0.08127128,2625.1,2625.0,0.038]
[1727264312175,0.8152,2625.3,2625.0,0.038]
[1727264312370,0.08124988,2625.1,2625.0,0.038]
[1727264312570,0.8152,2625.3,2625.0,0.038]
[1727264312776,0.08124988,2625.1,2625.0,0.038]
[1727264312990,0.8152,2625.3,2625.0,0.038]
[1727264313206,0.08124988,2625.1,2625.0,0.038]
[1727264313387,0.8152,2625.3,2625.0,0.038]
[1727264313610,0.08124988,2625.1,2625.0,0.038]
[1727264313805,0.8152,2625.3,2625.0,0.038]
[1727264313982,0.08124988,2625.1,2625.0,0.038]
[1727264314179,0.8152,2625.3,2625.0,0.038]
[1727264314395,0.08124988,2625.1,2625.0,0.038]
[1727264315017,0.8152,2625.3,2625.0,0.038]
[1727264315219,0.08124988,2625.1,2625.0,0.038]
[1727264315422,0.8152,2625.3,2625.0,0.038]
[1727264316325,0.08124988,2625.1,2625.0,0.038]
[1727264316629,0.8152,2625.3,2625.0,0.038]
[1727264316791,0.08124988,2625.1,2625.0,0.038]
[1727264317323,0.8152,2625.3,2625.0,0.038]
[1727264317497,0.08124988,2625.1,2625.0,0.038]
[1727264317813,0.8152,2625.3,2625.0,0.038]
[1727264317993,0.08124988,2625.1,2625.0,0.038]
[1727264318191,0.8152,2625.3,2625.0,0.038]
[1727264318400,0.08124988,2625.1,2625.0,0.038]
[1727264318613,0.8152,2625.3,2625.0,0.038]
[1727264318778,0.07868988,2625.1,2625.0,0.038]
[1727264318993,0.8152,2625.3,2625.0,0.038]
[1727264319181,0.07868988,2625.1,2625.0,0.038]
[1727264319378,0.8152,2625.3,2625.0,0.038]
[1727264319610,0.07868988,2625.1,2625.0,0.038]
[1727264319817,0.8152,2625.3,2625.0,0.038]
[1727264320011,0.07868988,2625.1,2625.0,0.038]
[1727264320216,0.8152,2625.3,2625.0,0.038]
[1727264320422,0.07868988,2625.1,2625.0,0.038]
[1727264320729,0.07864635,2625.1,2625.0,0.038]
[1727264321035,0.8152,2625.3,2625.0,0.038]
[1727264321483,0.07870011,2625.2,2625.0,0.038]
[1727264321686,0.8152,2625.3,2625.0,0.038]
[1727264321905,0.07864635,2625.1,2625.0,0.038]
[1727264322108,0.8152,2625.3,2625.0,0.038]
[1727264322426,0.07864635,2625.1,2625.0,0.038]
[1727264322594,0.8152,2625.3,2625.0,0.038]
[1727264322922,1.59679045,2625.4,2625.0,0.11418545]
[1727264323090,0.07870011,2625.2,2625.1,1.38258393]
[1727264323292,1.59679045,2625.7,2625.2,0.7613]
[1727264323520,2.40719045,2625.8,2625.3,0.07617348]
[1727264323734,2.40719045,2625.8,2625.3,1.38257594]
[1727264323886,1.59679045,2625.8,2625.4,0.21438759]
[1727264324092,2.42899045,2626.0,2625.5,0.7625]
[1727264324283,0.8322,2626.0,2625.5,0.7625]
[1727264325222,0.07683284,2625.9,2625.6,0.23667448]
[1727264325530,0.07683284,2625.9,2625.5,0.7625]
[1727264330188,1.3832353,2625.9,2625.5,0.7625]
[1727264330389,1.3832353,2625.9,2625.1,0.7973]
[1727264331437,1.3832353,2625.9,2625.1,2.98449164]
[1727264331728,1.3832353,2625.9,2625.2,0.07616773]
[1727264331932,1.3832353,2625.9,2625.2,1.11846812]
[1727264332310,0.07683284,2625.9,2625.8,0.7637]
[1727264332660,0.07683284,2625.9,2625.8,0.83985205]
[1727264332961,0.038,2626.0,2625.8,0.83985205]
[1727264333123,0.038,2626.0,2625.9,0.21462545]
[1727264333735,0.038,2626.0,2625.9,1.52102791]
[1727264333942,0.038,2626.0,2625.9,2.05870246]
[1727264334136,0.038,2626.0,2625.9,2.13484684]
[1727264334337,0.038,2626.0,2625.9,0.82844438]
[1727264341745,0.038,2626.0,2625.9,0.7523]
[1727264341956,0.038,2626.0,2625.9,1.41027964]
[1727264345364,0.038,2626.0,2625.9,1.48642468]
[1727264346071,0.038251,2626.8,2625.9,6.56162107]
[1727264346409,0.038251,2626.8,2626.2,3.7793]
[1727264346611,0.038251,2626.8,2626.2,0.7793]
[1727264346768,0.07076922,2626.7,2626.2,0.7793]
[1727264349924,0.07076922,2626.7,2626.2,0.85543889]
[1727264350817,0.07076922,2626.7,2626.2,3.85543889]
[1727264351145,0.038251,2626.8,2626.4,3.8264]
[1727264351322,0.038251,2626.8,2626.6,0.8264]
[1727264352581,0.038251,2626.8,2626.4,0.7546]
[1727264352782,0.06604642,2626.7,2626.2,0.7665]
[1727264353013,0.06604642,2626.7,2626.2,2.08924964]
[1727264353225,0.773,2626.7,2626.2,2.1653903]
[1727264353425,0.773,2626.7,2626.3,3.51653903]
[1727264353584,0.773,2626.7,2626.2,2.08924964]
[1727264356360,0.773,2626.7,2626.2,2.1653894]
[1727264356513,0.773,2626.7,2626.2,0.84263976]
[1727264356716,0.773,2626.7,2626.2,0.7665]
[1727264358836,0.773,2626.7,2625.7,7.4]
[1727264358837,0.773,2626.7,2625.8,0.8293]
[1727264359043,0.773,2626.7,2625.9,1.10567964]
[1727264359447,0.06602696,2626.6,2625.9,1.10567964]
[1727264359953,0.7761,2626.5,2625.9,1.10567964]
[1727264360459,0.06590524,2626.4,2625.9,1.10567964]
[1727264362245,0.06590524,2626.4,2625.8,0.8293]
[1727264362785,0.7761,2626.5,2625.8,0.8293]
[1727264366971,0.7761,2626.5,2625.7,1.30518662]
[1727264367481,0.7761,2626.5,2625.6,3.7799]
[1727264367839,0.7761,2626.5,2625.6,0.7799]
[1727264368040,0.813,2626.4,2625.6,4.85902653]
[1727264369691,0.7994,2626.3,2625.6,1.85902653]
[1727264370029,0.7994,2626.3,2625.4,8.1993735]
[1727264370030,0.06346181,2626.2,2625.4,8.1505]
[1727264370197,0.7994,2626.1,2625.4,8.1505]
[1727264370393,0.7994,2626.1,2625.5,0.87282791]
[1727264370602,0.7994,2626.1,2625.6,0.29324538]
[1727264374443,0.7994,2626.1,2625.7,1.30518662]
[1727264375250,0.7994,2626.1,2625.7,1.3813456]
[1727264375854,0.7994,2626.1,2625.9,1.30518662]
[1727264378864,0.827,2626.7,2625.9,1.30518662]
[1727264379061,0.827,2626.6,2626.0,0.07615273]
[1727264379262,0.88953174,2626.6,2626.0,0.07615273]
[1727264382875,0.88953174,2626.6,2625.9,1.38133962]
[1727264383027,0.88953174,2626.6,2625.9,1.98030744]
[1727264385474,0.88953174,2626.6,2626.0,0.8297]
[1727264385980,0.88953174,2626.6,2626.1,1.30518662]
[1727264387357,0.88953174,2626.6,2626.0,0.8297]
[1727264387671,0.88953174,2626.6,2626.1,0.41212621]
[1727264388437,0.88953174,2626.6,2626.1,0.48827378]
[1727264388680,0.88953174,2626.6,2626.1,0.41212621]
[1727264390777,0.88953174,2626.6,2626.2,0.0761476]
[1727264392668,0.88953174,2626.6,2626.1,1.79345559]
[1727264392854,0.88953174,2626.6,2626.2,0.25470128]
[1727264394942,0.88953174,2626.6,2626.2,0.33084396]
[1727264395141,0.88953174,2626.6,2626.2,0.25470128]
[1727264395380,0.88953174,2626.6,2626.0,0.8297]
[1727264395565,0.88953174,2626.6,2626.1,0.87425979]
[1727264396179,0.88953174,2626.6,2626.0,0.8297]
[1727264396547,0.88953174,2626.6,2626.1,0.87437093]
[1727264398278,0.88953174,2626.6,2626.0,2.70800991]
[1727264398579,0.88953174,2626.6,2626.1,2.75288115]
[1727264398755,0.88953174,2626.6,2626.1,1.87830991]
[1727264399452,0.88953174,2626.6,2626.0,2.97199651]
[1727264399652,0.88953174,2626.6,2626.1,1.31189659]
[1727264399860,0.88953174,2626.6,2626.1,2.31620476]
[1727264400163,0.88953174,2626.6,2626.1,2.31618593]
[1727264400883,0.88953174,2626.6,2626.1,1.74925873]
[1727264401783,0.88953174,2626.6,2626.2,0.87484872]
[1727264402476,0.88953174,2626.6,2626.1,1.74925873]
[1727264402689,0.88953174,2626.6,2626.2,0.8749401]
[1727264402979,0.8054,2626.4,2626.1,1.31239531]
[1727264403496,0.06263489,2626.3,2626.1,1.87935707]
[1727264404004,0.06263489,2626.3,2626.0,1.87935707]
[1727264404166,0.06263489,2626.3,2625.9,0.7993735]
[1727264404167,0.8054,2626.4,2626.1,2.75443922]
[1727264404372,0.06237622,2626.2,2626.0,2.67873057]
[1727264404575,0.8054,2626.4,2626.1,2.75447557]
[1727264404877,0.8054,2626.4,2626.1,1.87935707]
[1727264405684,0.8054,2626.4,2626.2,0.87514081]
[1727264405993,0.8054,2626.4,2626.0,1.80624415]
[1727264406155,0.8054,2626.4,2626.1,1.85552334]
[1727264406356,0.8054,2626.4,2626.1,2.42257699]
[1727264406668,0.8054,2626.4,2626.1,1.87977499]
[1727264406997,0.8054,2626.4,2625.9,1.88009986]
[1727264406998,0.06256991,2626.3,2625.9,1.88009986]
[1727264407151,0.8065,2626.2,2625.9,1.88011502]
[1727264407353,0.06256991,2626.3,2625.8,3.0]
[1727264407354,0.06245174,2626.1,2625.8,1.31318829]
[1727264407667,0.8065,2626.0,2625.6,0.7993735]
[1727264407854,0.8065,2626.0,2625.7,2.75588417]
[1727264408055,0.8065,2626.0,2625.7,4.88043542]
[1727264408788,0.8065,2626.0,2625.7,1.88022071]
[1727264409088,0.8065,2626.0,2625.8,0.87534493]
[1727264409671,0.8065,2626.0,2625.7,4.88022071]
[1727264409871,0.8065,2626.0,2625.8,0.86795942]
[1727264410595,0.8065,2626.0,2625.7,4.88022071]
[1727264410813,0.8065,2626.0,2625.7,1.88022071]
[1727264411154,0.8065,2626.0,2625.7,1.88003531]
[1727264412008,0.8065,2626.0,2625.7,1.31285147]
[1727264412206,0.8065,2626.0,2625.7,1.87994414]
[1727264412504,0.8065,2626.0,2625.7,2.01121267]
[1727264412670,0.8065,2626.0,2625.7,2.57830534]
[1727264413074,0.06234427,2625.9,2625.7,2.01121267]
[1727264413305,0.06234427,2625.9,2625.8,0.8751061]
[1727264413808,0.8065,2626.0,2625.8,0.8751061]
[1727264414108,0.06234427,2625.9,2625.8,1.55129136]
[1727264414496,0.8065,2626.0,2625.8,1.55129136]
[1727264414717,0.8065,2626.0,2625.8,0.67618526]
[1727264415050,0.06224357,2625.9,2625.8,1.48258526]
[1727264415212,0.7666,2626.5,2625.8,6.34166236]
[1727264415411,0.7666,2626.5,2626.2,1.30518662]
[1727264415716,0.7847,2626.7,2626.2,2.09628662]
[1727264415876,0.7847,2626.7,2626.2,2.51710904]
[1727264416072,0.038251,2626.8,2626.4,1.30518662]
[1727264416309,0.038251,2626.8,2626.2,6.15042487]
[1727264416496,0.038251,2626.8,2626.3,1.48958496]
[1727264416702,0.038251,2626.8,2626.3,0.61504249]
[1727264417020,0.038251,2626.8,2626.4,0.07614045]
[1727264419005,0.81,2626.6,2626.3,0.61504249]
[1727264419393,0.06275232,2626.5,2626.3,0.61504249]
[1727264419695,0.06275232,2626.5,2626.4,0.40358649]
[1727264419904,0.06275232,2626.5,2626.1,5.6785927]
[1727264420287,0.06275232,2626.5,2626.1,1.36602865]
[1727264420911,0.06275232,2626.5,2626.1,0.7993735]
[1727264421110,0.06275232,2626.5,2626.2,0.87453438]
[1727264421298,0.06275232,2626.5,2626.2,4.55482533]
[1727264421494,0.06275232,2626.5,2626.2,3.68029095]
[1727264421825,0.06275232,2626.5,2626.2,0.68029095]
[1727264422002,0.06275232,2626.5,2626.1,0.7993735]
[1727264422552,0.06275232,2626.5,2626.0,3.56666617]
[1727264422847,0.81,2626.6,2626.0,1.312167]
[1727264423139,0.06270716,2626.4,2626.0,0.56666617]
[1727264423433,3.5814649,2626.1,2626.0,0.56666617]
[1727264423629,0.7549,2626.0,2625.9,2.67774523]
[1727264423800,0.7549,2626.0,2625.9,2.11107906]
[1727264424003,0.81758927,2626.0,2625.9,2.11107906]
[1727264424432,0.81758927,2626.0,2625.9,0.79891206]
[1727264430374,1.23319451,2626.0,2625.9,0.79891206]
[1727264432060,1.27220198,2626.0,2625.9,0.79891206]
[1727264432972,1.22101216,2626.0,2625.9,0.79891206]
[1727264433121,0.85659674,2626.0,2625.9,0.79891206]
[1727264439191,0.90778656,2626.0,2625.9,0.79891206]
[1727264440063,0.90778656,2626.0,2625.0,0.8145]
[1727264440260,2.8265649,2625.9,2625.0,0.8145]
[1727264440475,0.42462497,2625.8,2625.0,0.8145]
[1727264440678,0.52589938,2625.8,2625.0,0.8145]
[1727264441495,0.8286,2625.7,2625.0,0.8145]
[1727264441867,0.10116992,2625.6,2625.0,0.8145]
[1727264442070,0.8286,2625.7,2625.0,0.8145]
[1727264442258,0.10111767,2625.5,2625.0,0.8145]
[1727264442458,0.8286,2625.7,2625.0,0.8145]
[1727264442660,0.10106542,2625.4,2625.0,0.8145]
[1727264442994,0.8286,2625.7,2625.0,0.8145]
[1727264442995,3.70635472,2625.7,2625.0,0.8145]